bitfinex/quotes_ETHUSD_20240902
["timestamp","ask_amount","ask_price","bid_price","bid_amount"]
[1725271438191,0.02086605,2523.8,2523.4,2.77396]
[1725271438729,0.02086605,2523.8,2523.2,5.54836]
[1725271439041,0.02086605,2523.8,2522.9,0.3977]
[1725271439042,0.34414497,2523.8,2522.9,0.3977]
[1725271439248,0.34414497,2523.8,2523.3,2.77404]
[1725271439432,0.34414497,2523.8,2523.1,2.77429]
[1725271440051,2.36,2523.7,2522.9,3.17222]
[1725271440235,0.29128055,2523.6,2522.6,2.77487]
[1725271440434,0.29128055,2523.6,2522.8,2.77468]
[1725271440732,2.77396,2523.5,2522.7,2.77479]
[1725271440904,5.13416,2523.3,2522.4,2.77506]
[1725271441104,0.02086605,2523.2,2522.5,2.775]
[1725271441300,1.00292941,2523.2,2522.5,2.775]
[1725271443063,1.00292941,2523.2,2522.4,2.77506]
[1725271443064,1.00292941,2523.2,2522.4,2.77512]
[1725271443212,2.77437,2523.1,2522.2,2.77528]
[1725271443415,0.39859599,2523.0,2522.4,2.77513]
[1725271443627,0.02086605,2523.0,2522.2,2.77527]
[1725271444042,5.06604,2522.9,2522.0,2.77553]
[1725271444257,4.35908345,2522.7,2521.8,2.77575]
[1725271444554,2.35006605,2522.6,2521.9,2.77567]
[1725271444756,2.35006605,2522.6,2521.6,2.77596]
[1725271444980,2.35006605,2522.6,2521.8,2.7757]
[1725271444981,0.94839995,2522.5,2521.8,2.7757]
[1725271445256,0.02086605,2522.4,2521.8,2.77573]
[1725271445454,0.35071265,2522.4,2521.8,2.77573]
[1725271445752,0.35071265,2522.4,2521.3,3.174]
[1725271445753,0.35071265,2522.4,2522.1,2.77539]
[1725271445967,0.02086605,2522.4,2522.1,2.77539]
[1725271446328,0.02086605,2522.5,2522.1,2.77537]
[1725271446530,0.25378605,2522.5,2522.2,2.77526]
[1725271446727,0.02086605,2522.5,2522.2,2.77526]
[1725271446963,0.02086605,2522.5,2522.1,5.55076]
[1725271447150,0.02086605,2522.5,2521.9,2.77563]
[1725271447366,0.02086605,2522.5,2521.7,2.77582]
[1725271447546,0.691781,2522.5,2521.8,2.77576]
[1725271447746,0.691781,2522.5,2521.7,2.77582]
[1725271448370,2.77527,2522.3,2521.5,2.77607]
[1725271448554,2.57989305,2522.2,2521.6,2.77601]
[1725271448761,2.57989305,2522.2,2521.5,2.77607]
[1725271448986,5.35531305,2522.2,2521.3,5.55253]
[1725271449269,0.53553131,2522.1,2521.4,2.77615]
[1725271449571,0.02086605,2522.0,2521.3,2.77626]
[1725271449771,0.02086605,2522.0,2521.1,2.77649]
[1725271449772,2.4668,2521.9,2521.1,2.77649]
[1725271449962,0.54719166,2521.8,2521.3,2.77626]
[1725271450171,0.02086605,2521.8,2521.3,2.77626]
[1725271450682,0.02086605,2521.8,2521.5,2.77611]
[1725271450973,0.02086605,2521.8,2521.4,2.77621]
[1725271451183,0.26963266,2521.8,2521.3,2.77626]
[1725271451679,0.02086605,2521.8,2521.6,2.77596]
[1725271451833,0.02086605,2521.8,2521.6,2.77593]
[1725271452271,0.53553131,2522.1,2521.6,2.77593]
[1725271452272,0.02086605,2522.0,2521.6,2.77593]
[1725271453335,0.02086605,2522.0,2521.4,2.77618]
[1725271453846,2.3156,2521.9,2521.2,2.77639]
[1725271454057,2.3156,2521.9,2520.6,2.507]
[1725271454058,2.3156,2521.7,2520.8,2.77685]
[1725271454236,2.77643,2521.3,2520.2,2.7775]
[1725271454435,0.02086605,2521.6,2520.4,2.77724]
[1725271454436,6.67468345,2521.1,2520.4,2.77724]
[1725271454635,0.02086605,2521.0,2520.5,2.77712]
[1725271454877,0.02086605,2521.0,2520.4,2.77724]
[1725271455088,0.02086605,2521.0,2520.1,3.075253]
[1725271455089,0.25451265,2521.0,2520.1,0.07935359]
[1725271455394,0.25451265,2521.0,2520.5,2.77715]
[1725271455537,0.25451265,2521.0,2520.4,2.77723]
[1725271456240,9.91296345,2520.8,2519.8,2.9024438]
[1725271456439,2.79787605,2520.7,2519.9,2.77788]
[1725271456639,2.79787605,2520.7,2519.8,2.9024038]
[1725271456640,0.02086605,2520.7,2519.8,2.9024038]
[1725271456862,3.29548795,2520.6,2519.9,2.77786]
[1725271457044,0.02086605,2520.5,2519.9,2.7778]
[1725271457266,2.3021,2520.4,2519.8,0.1244838]
[1725271457452,0.02086605,2520.3,2519.8,0.1244838]
[1725271458580,4.3799495,2520.3,2519.8,0.1244838]
[1725271458734,4.3799495,2520.3,2519.9,2.77787]
[1725271458935,0.02086605,2520.3,2519.8,2.9024338]
[1725271459184,0.28632619,2520.3,2520.0,2.77777]
[1725271459403,0.02086605,2520.3,2519.9,2.77785]
[1725271459537,0.02086605,2520.3,2520.2,2.77755]
[1725271459739,0.02086605,2520.7,2520.3,2.7774]
[1725271459972,0.02086605,2521.0,2520.5,2.77717]
[1725271460315,2.5047,2521.1,2521.0,2.77667]
[1725271460316,0.02086605,2521.1,2521.0,2.77667]
[1725271460459,0.02086605,2521.1,2520.2,2.404]
[1725271460460,0.02086605,2521.4,2520.7,2.77697]
[1725271460781,0.02086605,2521.4,2521.3,2.77634]
[1725271460964,0.02086605,2521.4,2521.2,2.77643]
[1725271461157,2.5047,2521.6,2521.4,2.77614]
[1725271461158,0.02086605,2521.6,2521.4,2.77614]
[1725271461469,0.02086605,2521.8,2521.6,2.77601]
[1725271461836,0.02086605,2522.2,2521.6,2.77601]
[1725271462036,0.709331,2522.2,2521.6,2.77601]
[1725271462284,0.709331,2522.2,2521.7,2.77588]
[1725271462482,0.709331,2522.2,2521.6,2.77601]
[1725271462772,0.709331,2522.2,2521.7,2.77589]
[1725271463495,0.709331,2522.2,2521.3,2.77631]
[1725271463787,5.26717903,2522.1,2520.9,6.01713]
[1725271463934,0.02086605,2522.0,2521.5,2.77602]
[1725271464140,0.02086605,2522.0,2521.4,2.77614]
[1725271464342,0.02086605,2522.0,2521.1,2.77647]
[1725271464653,0.02086605,2522.0,2521.6,2.77592]
[1725271464879,0.02086605,2522.0,2521.2,2.77641]
[1725271465192,2.79644605,2522.0,2521.0,2.77666]
[1725271465477,2.3999,2521.9,2521.1,2.77656]
[1725271465641,0.61526898,2521.8,2521.3,2.77632]
[1725271465843,0.61526898,2521.8,2521.5,2.77604]
[1725271466073,0.61526898,2521.8,2521.3,2.77628]
[1725271466939,0.61526898,2521.8,2521.3,2.77625]
[1725271467165,0.3015169,2521.7,2521.3,2.77626]
[1725271467372,0.02086605,2521.6,2521.3,2.77626]
[1725271467783,0.02086605,2521.6,2521.3,2.77624]
[1725271468153,0.02086605,2521.8,2521.5,2.77612]
[1725271468500,0.02086605,2521.8,2520.8,2.77681]
[1725271468501,4.94577593,2521.7,2520.8,2.77681]
[1725271468677,0.02086605,2521.6,2521.3,2.77634]
[1725271469083,0.02086605,2521.6,2521.3,2.77625]
[1725271469290,0.02086605,2521.6,2521.1,2.77645]
[1725271469583,2.3999,2521.9,2520.9,2.77675]
[1725271469584,0.02086605,2521.8,2520.9,2.77675]
[1725271469799,4.35908345,2521.7,2520.9,2.77675]
[1725271469956,0.02086605,2521.6,2520.9,5.55344]
[1725271470278,0.02086605,2521.6,2520.9,2.77669]
[1725271470481,0.02086605,2521.6,2521.1,2.77647]
[1725271470677,0.02086605,2521.6,2521.3,2.77627]
[1725271470999,0.02086605,2521.6,2521.1,5.55303]
[1725271471308,0.02086605,2521.6,2521.1,2.77648]
[1725271471455,0.02086605,2521.6,2520.9,2.7767]
[1725271471658,0.02086605,2521.6,2521.2,2.77636]
[1725271472108,0.02086605,2521.6,2521.0,2.77663]
[1725271472109,0.02086605,2521.8,2521.0,2.77658]
[1725271472332,0.02086605,2521.8,2521.2,2.77636]
[1725271472640,0.02086605,2521.8,2521.4,2.77623]
[1725271472810,0.26294266,2521.8,2521.2,2.77636]
[1725271473015,0.02086605,2521.7,2521.4,2.77615]
[1725271473213,0.02086605,2521.7,2521.2,5.55277]
[1725271473427,0.02086605,2521.7,2521.2,2.77637]
[1725271473795,0.02086605,2521.7,2521.4,2.77622]
[1725271474001,0.02086605,2521.7,2521.3,2.77626]
[1725271474213,0.02086605,2521.7,2521.2,2.77637]
[1725271474545,0.02086605,2521.7,2521.4,2.77623]
[1725271475399,0.02086605,2521.7,2521.2,2.77637]
[1725271475594,0.02086605,2521.7,2521.4,2.77622]
[1725271475996,0.02086605,2521.7,2520.7,0.3688971]
[1725271476204,0.05,2523.7,2520.7,0.3688971]
[1725271476205,2.49726605,2522.3,2522.1,2.77539]
[1725271476441,2.309,2522.6,2522.1,2.77539]
[1725271476640,2.309,2522.6,2521.9,2.77561]
[1725271476935,0.2309,2522.5,2521.9,2.77561]
[1725271477135,0.02086605,2522.4,2522.0,2.77555]
[1725271477342,0.02086605,2522.4,2521.9,2.77561]
[1725271477509,0.02086605,2522.4,2522.0,2.77555]
[1725271477700,0.02086605,2522.4,2521.9,2.77561]
[1725271478845,0.02086605,2522.4,2522.0,2.77547]
[1725271479204,0.02086605,2522.4,2521.9,2.7756]
[1725271479936,0.02086605,2522.4,2521.9,2.77559]
[1725271480506,0.02086605,2522.6,2521.9,2.77559]
[1725271480703,0.25158605,2522.6,2521.9,2.77559]
[1725271481148,0.25158605,2522.6,2522.1,2.77546]
[1725271481719,2.77438,2523.1,2522.3,2.7752]
[1725271481720,0.02086605,2523.0,2522.3,2.7752]
[1725271481968,0.02086605,2523.0,2522.8,2.77458]
[1725271482111,0.02086605,2523.0,2522.8,5.5492]
[1725271482459,0.02086605,2523.0,2522.9,2.77458]
[1725271482657,0.24743661,2523.0,2522.9,2.77458]
[1725271482860,0.02086605,2523.6,2522.8,2.4603]
[1725271483024,0.02086605,2523.8,2523.4,2.77396]
[1725271483233,0.02086605,2523.8,2523.2,2.77425]
[1725271483234,0.26220605,2523.8,2523.2,2.77425]
[1725271483552,0.02086605,2523.7,2522.8,2.4603]
[1725271483767,0.02086605,2523.7,2523.2,2.77424]
[1725271484247,0.02086605,2523.7,2522.9,2.77454]
[1725271484248,0.02086605,2523.7,2523.4,2.77401]
[1725271484454,0.02086605,2523.7,2523.6,2.77381]
[1725271484661,0.26220605,2523.8,2523.6,2.77381]
[1725271484807,0.02086605,2523.7,2523.6,2.77381]
[1725271486108,0.02086605,2523.7,2523.4,2.77395]
[1725271486422,0.02086605,2523.7,2523.4,5.54791]
[1725271486839,0.02086605,2523.7,2523.6,2.77381]
[1725271487023,0.24134,2523.8,2523.6,2.77381]
[1725271487395,0.26220605,2523.8,2523.6,2.77381]
[1725271487660,2.29256605,2524.3,2523.6,2.77373]
[1725271487953,0.02086605,2524.2,2523.4,2.77396]
[1725271488125,0.686031,2524.2,2523.8,2.77352]
[1725271488323,0.686031,2524.2,2523.6,2.77373]
[1725271488956,0.686031,2524.2,2523.6,5.54745]
[1725271489150,0.686031,2524.2,2523.4,2.77399]
[1725271489359,5.19414583,2524.1,2523.4,2.77399]
[1725271489662,5.19414583,2524.1,2522.6,1.0]
[1725271489663,2.348,2523.9,2523.0,2.7744]
[1725271489950,2.348,2523.9,2522.7,0.3977]
[1725271489951,0.02086605,2523.8,2523.3,2.77405]
[1725271490154,0.25775265,2523.8,2523.4,2.77401]
[1725271490747,0.25775265,2523.8,2523.4,2.77396]
[1725271491470,0.25775265,2523.8,2523.4,5.54791]
[1725271491662,0.25775265,2523.8,2523.4,2.77395]
[1725271492021,0.25775265,2523.8,2523.4,2.77394]
[1725271492246,0.25775265,2523.8,2523.5,2.77385]
[1725271492458,0.2368866,2523.8,2523.6,2.77377]
[1725271492661,0.31663915,2524.1,2523.7,2.7737]
[1725271492961,0.31663915,2524.1,2523.9,2.7734]
[1725271492962,0.02086605,2524.1,2523.9,2.7734]
[1725271493160,4.3799495,2524.1,2523.4,2.77393]
[1725271493315,7.4732026,2524.1,2523.2,2.77417]
[1725271493515,2.4686,2524.0,2523.2,2.77417]
[1725271493758,10.2465526,2524.1,2522.8,2.77461]
[1725271493759,2.4686,2523.6,2522.8,2.77461]
[1725271494062,0.02086605,2523.5,2523.0,2.77437]
[1725271494430,0.02086605,2523.5,2522.8,2.77464]
[1725271494774,7.40282611,2523.5,2522.8,2.77466]
[1725271495009,7.40282611,2523.5,2522.1,2.4104]
[1725271495010,7.40282611,2523.5,2522.5,2.77497]
[1725271495161,2.3916,2523.4,2522.5,2.77495]
[1725271495364,2.79501605,2523.3,2522.5,2.77495]
[1725271495568,0.5186616,2523.2,2522.6,3.77484]
[1725271495795,0.02086605,2523.1,2522.6,1.0]
[1725271496009,0.02086605,2523.1,2522.7,2.77479]
[1725271496311,0.02086605,2523.1,2522.6,1.0]
[1725271496975,2.5158,2523.0,2522.6,1.0]
[1725271497303,0.27453266,2522.9,2522.6,1.0]
[1725271499517,2.77469,2522.8,2522.6,1.0]
[1725271499823,5.20796605,2522.7,2522.6,1.0]
[1725271500275,2.49976605,2522.7,2522.6,1.0]
[1725271500606,8.04936605,2522.7,2522.6,1.0]
[1725271500771,13.36345533,2522.7,2522.6,0.4375]
[1725271500964,14.84698659,2522.7,2522.6,0.4375]
[1725271501204,14.84698659,2522.7,2521.2,2.77643]
[1725271501205,2.4789,2521.9,2521.2,2.77643]
[1725271501402,2.4789,2521.9,2521.2,2.77637]
[1725271501403,0.02086605,2521.8,2521.2,2.77637]
[1725271501575,0.02086605,2521.8,2521.4,2.77615]
[1725271501777,0.02086605,2521.8,2521.4,5.55231]
[1725271501980,0.02086605,2521.9,2521.8,2.77579]
[1725271502176,0.02086605,2521.9,2521.7,2.7759]
[1725271502177,2.4175,2522.5,2522.1,2.77546]
[1725271502513,3.25366661,2522.9,2522.5,2.77502]
[1725271502514,4.61275006,2522.9,2522.5,2.77502]
[1725271502668,0.02086605,2522.8,2522.3,2.77519]
[1725271503009,0.02086605,2522.8,2522.1,2.77541]
[1725271503301,4.35908345,2522.6,2522.1,2.77546]
[1725271503510,0.02086605,2522.5,2522.1,2.77546]
[1725271503861,0.02086605,2522.6,2522.3,2.77523]
[1725271504060,0.02086605,2522.8,2522.3,2.77523]
[1725271504260,0.698831,2522.8,2522.3,2.77523]
[1725271504465,0.02086605,2522.7,2522.5,2.77502]
[1725271504665,0.02086605,2522.7,2522.3,2.77517]
[1725271504973,0.02086605,2522.7,2522.5,2.77494]
[1725271505280,0.02086605,2523.3,2523.1,2.77427]
[1725271505526,0.02086605,2523.3,2522.9,2.77449]
[1725271505684,0.02086605,2523.3,2522.7,2.77472]
[1725271505869,2.5049,2523.2,2522.7,2.77472]
[1725271506071,0.02086605,2523.3,2522.9,2.77448]
[1725271506283,0.02086605,2523.3,2523.1,2.77432]
[1725271506481,0.02086605,2523.5,2523.1,2.77432]
[1725271506915,0.02086605,2523.5,2522.3,2.4253]
[1725271506916,0.02086605,2523.5,2523.3,2.77405]
[1725271507115,0.02086605,2523.7,2523.5,2.7739]
[1725271507317,0.62944198,2524.0,2523.5,2.7739]
[1725271507689,0.62944198,2524.0,2523.3,2.77405]
[1725271507927,0.3098442,2523.9,2523.3,2.77405]
[1725271508089,0.02086605,2523.8,2523.3,2.77405]
[1725271509632,0.02086605,2523.8,2523.5,2.77384]
[1725271509782,0.02086605,2523.8,2523.5,5.54768]
[1725271509982,0.02086605,2523.8,2523.5,2.77384]
[1725271510235,0.55070301,2523.8,2523.5,2.77384]
[1725271510521,0.02086605,2523.8,2523.7,2.7737]
[1725271510731,0.3098442,2523.9,2523.8,2.77359]
[1725271510881,0.62944198,2524.0,2523.8,2.77359]
[1725271511081,0.02086605,2524.1,2523.8,2.77359]
[1725271511282,0.02086605,2524.4,2523.8,2.77359]
[1725271511719,0.02086605,2524.4,2523.9,2.77339]
[1725271512033,0.75448993,2524.4,2524.0,2.77329]
[1725271515436,0.75448993,2524.4,2524.2,2.77305]
[1725271515437,0.02086605,2524.4,2524.2,2.77305]
[1725271515634,0.02086605,2524.7,2524.2,2.77305]
[1725271515944,0.988581,2524.7,2524.4,2.77286]
[1725271516094,0.02086605,2524.7,2524.4,2.77286]
[1725271516833,0.02086605,2524.7,2524.3,2.77303]
[1725271517043,0.02086605,2524.7,2524.4,2.77291]
[1725271517242,2.5003,2525.5,2524.1,2.6994]
[1725271517575,4.35908345,2525.7,2523.9,2.77345]
[1725271517576,0.02086605,2525.6,2524.9,2.77237]
[1725271517750,0.02086605,2525.6,2525.5,2.77172]
[1725271518047,0.02086605,2525.7,2525.4,2.77182]
[1725271518389,0.02086605,2525.7,2525.4,2.77175]
[1725271518590,0.27298266,2525.7,2525.5,2.77165]
[1725271518793,0.27298266,2525.7,2525.6,2.77161]
[1725271519043,2.5052,2526.2,2525.6,2.77161]
[1725271519044,0.02086605,2526.1,2525.6,2.77161]
[1725271519209,2.5052,2526.2,2525.9,2.77122]
[1725271519210,0.02086605,2526.2,2525.9,2.77122]
[1725271519417,0.02086605,2526.4,2526.1,2.77107]
[1725271519600,0.02086605,2526.5,2526.3,2.77083]
[1725271520535,0.02086605,2526.7,2526.4,2.77074]
[1725271520732,0.02086605,2526.9,2526.4,2.77072]
[1725271520932,0.7072944,2526.9,2526.4,2.77072]
[1725271521232,0.7072944,2526.9,2526.5,2.77063]
[1725271521467,0.02086605,2526.9,2526.3,2.77083]
[1725271521759,2.77065,2526.5,2525.7,2.77145]
[1725271521912,0.29793105,2526.4,2525.9,2.7712]
[1725271522112,0.02086605,2526.4,2525.9,2.7712]
[1725271522310,9.53979345,2526.8,2525.7,2.77147]
[1725271522311,2.79129605,2526.7,2525.7,2.77147]
[1725271522514,2.77066,2526.5,2525.7,2.77147]
[1725271522738,0.02086605,2526.4,2525.9,2.77118]
[1725271522939,0.02086605,2526.4,2526.0,2.77116]
[1725271523262,0.02086605,2526.6,2526.3,2.77084]
[1725271523813,0.02086605,2526.6,2526.1,2.77102]
[1725271524813,0.02086605,2526.7,2526.3,2.77084]
[1725271525087,0.02086605,2526.7,2526.1,2.77104]
[1725271525556,0.02086605,2526.7,2526.1,2.77098]
[1725271525708,0.02086605,2526.7,2526.2,2.77095]
[1725271526657,0.02086605,2526.7,2526.1,2.77098]
[1725271527585,6.67108345,2526.3,2524.8,2.3375]
[1725271527868,2.312,2525.8,2525.1,2.77215]
[1725271528041,0.02086605,2525.7,2525.1,2.77207]
[1725271528562,0.02086605,2525.7,2525.2,2.77203]
[1725271528894,0.02086605,2525.7,2525.1,2.77207]
[1725271529390,0.9651064,2525.8,2525.3,2.77186]
[1725271529684,4.35908345,2526.0,2525.1,2.77212]
[1725271529685,0.02086605,2525.7,2525.1,2.77212]
[1725271529993,2.79239605,2525.7,2525.0,2.77226]
[1725271530944,2.79239605,2525.7,2524.9,2.77228]
[1725271531153,2.79239605,2525.7,2523.1,0.1]
[1725271531154,2.3106,2524.9,2524.0,2.7733]
[1725271531412,2.3106,2524.9,2524.1,2.77325]
[1725271531413,2.79344605,2524.8,2524.1,2.77325]
[1725271531686,2.79344605,2524.8,2524.0,2.7733]
[1725271531687,0.02086605,2524.7,2524.2,2.77313]
[1725271532247,0.990276,2524.7,2524.2,2.77313]
[1725271533200,4.35908345,2525.2,2524.3,0.07923123]
[1725271533348,0.02086605,2525.1,2524.6,2.77263]
[1725271533547,0.4567744,2525.1,2524.6,2.77263]
[1725271533803,0.4567744,2525.1,2524.7,2.7726]
[1725271534004,4.35908345,2525.2,2524.9,2.77238]
[1725271534005,0.02086605,2525.2,2524.9,2.77238]
[1725271534555,0.02086605,2525.4,2525.1,2.77216]
[1725271534890,0.30010566,2525.6,2525.1,2.77216]
[1725271535589,3.07172566,2525.6,2524.9,2.7723]
[1725271535790,0.30717257,2525.5,2524.9,5.5446]
[1725271536088,0.02086605,2525.4,2524.9,2.7723]
[1725271536337,2.79274605,2525.4,2524.7,2.77256]
[1725271536453,0.71518295,2525.3,2524.9,2.77238]
[1725271536651,0.71518295,2525.3,2525.0,2.7722]
[1725271536849,0.02086605,2525.4,2524.9,2.77238]
[1725271537296,0.02086605,2525.4,2525.0,2.77227]
[1725271537666,0.02086605,2525.4,2525.1,2.77214]
[1725271538177,7.13050345,2525.8,2525.1,2.77214]
[1725271538178,0.02086605,2525.7,2525.1,2.77214]
[1725271538392,2.7718,2525.5,2524.7,2.77253]
[1725271538558,5.12966605,2525.4,2524.7,2.77253]
[1725271538760,1.22605495,2525.3,2524.7,2.77253]
[1725271539005,0.02086605,2525.2,2524.7,2.77253]
[1725271539761,0.02086605,2525.2,2524.7,5.54505]
[1725271539995,0.02086605,2525.2,2524.4,2.3495]
[1725271539996,0.02086605,2525.2,2524.5,0.07921492]
[1725271540157,0.02086605,2525.6,2525.4,2.77183]
[1725271540352,2.7709,2526.3,2524.5,0.62208641]
[1725271540353,0.02086605,2525.7,2525.3,2.77184]
[1725271540666,2.77135,2525.9,2525.1,5.54419]
[1725271540854,2.77162,2525.6,2524.9,2.77233]
[1725271541059,2.79259605,2525.5,2524.8,2.77242]
[1725271541263,1.24087995,2525.4,2524.7,2.77253]
[1725271541457,2.79284605,2525.3,2524.7,2.77253]
[1725271541682,0.02086605,2525.3,2524.7,2.77253]
[1725271541887,4.3799495,2525.3,2524.3,2.77298]
[1725271542095,2.77242,2524.9,2524.3,2.77298]
[1725271542302,7.13140345,2525.0,2524.3,2.77298]
[1725271542303,0.02086605,2524.8,2524.5,2.77278]
[1725271543263,0.02086605,2524.9,2524.5,2.77278]
[1725271544315,0.02086605,2524.9,2523.9,2.77344]
[1725271544316,2.77271,2524.6,2523.9,2.77338]
[1725271544609,2.95394807,2524.8,2523.7,2.77366]
[1725271544610,4.35908345,2524.4,2523.7,2.77366]
[1725271544823,0.02086605,2524.3,2523.7,2.77366]
[1725271544997,0.736144,2524.3,2523.7,2.77366]
[1725271545310,0.736144,2524.3,2523.9,2.77343]
[1725271545799,0.736144,2524.3,2524.0,2.77335]
[1725271546010,0.736144,2524.3,2523.9,2.77343]
[1725271547181,0.736144,2524.3,2523.7,2.7736]
[1725271547388,3.29211875,2524.2,2523.7,2.7736]
[1725271547741,0.02086605,2524.1,2523.9,2.77345]
[1725271550394,0.02086605,2524.1,2523.7,2.7736]
[1725271551127,2.77371,2523.7,2523.1,2.77434]
[1725271551411,2.77371,2523.7,2522.9,2.77451]
[1725271551412,0.73414539,2523.6,2522.9,2.77451]
[1725271551649,5.54823,2523.4,2522.7,2.77476]
[1725271551789,1.0115974,2523.3,2522.7,2.77473]
[1725271551993,0.02086605,2523.2,2522.7,2.77473]
[1725271552827,0.02086605,2523.2,2523.0,2.77443]
[1725271553044,0.02086605,2523.4,2523.0,2.77443]
[1725271553207,0.50723628,2523.4,2522.9,0.07927056]
[1725271553530,0.02086605,2523.5,2523.2,2.77416]
[1725271553695,0.34289059,2523.5,2523.2,2.77416]
[1725271554996,4.70197404,2523.5,2523.0,5.54882]
[1725271555295,4.70197404,2523.5,2522.8,2.77461]
[1725271555296,8.06108545,2523.5,2522.8,2.77461]
[1725271555604,5.1483,2523.4,2522.8,2.77461]
[1725271555817,1.0644116,2523.3,2522.8,5.54923]
[1725271556019,1.0644116,2523.3,2522.8,2.77461]
[1725271556222,4.35908345,2523.2,2522.5,2.77497]
[1725271556394,2.4368,2523.0,2522.5,2.77495]
[1725271556718,2.4368,2523.0,2522.4,2.77507]
[1725271556719,0.02086605,2522.9,2522.4,2.77504]
[1725271556926,0.26454605,2522.9,2522.5,2.775]
[1725271557338,0.26454605,2522.9,2522.4,2.77504]
[1725271557630,0.26454605,2522.9,2521.9,5.13834]
[1725271557631,0.26454605,2522.9,2522.5,2.77501]
[1725271557938,0.02086605,2522.9,2522.3,5.55036]
[1725271558301,0.02086605,2522.9,2522.3,5.55031]
[1725271558531,0.02086605,2522.9,2522.5,2.77501]
[1725271558741,0.02086605,2522.9,2522.5,5.54989]
[1725271558945,0.02086605,2522.9,2522.5,2.77494]
[1725271559156,0.26663265,2522.9,2522.5,2.77494]
[1725271559450,0.02086605,2522.9,2522.7,2.77479]
[1725271560768,4.3799495,2522.9,2522.3,5.55034]
[1725271560907,4.3799495,2522.9,2522.0,2.7755]
[1725271560908,4.35908345,2522.6,2522.0,2.7755]
[1725271561215,4.35908345,2522.6,2522.2,2.77533]
[1725271561216,0.02086605,2522.5,2522.2,2.77533]
[1725271561422,0.458861,2522.5,2522.2,2.77533]
[1725271561622,0.458861,2522.5,2522.0,2.77553]
[1725271561835,2.4322,2522.4,2522.0,2.77553]
[1725271562166,0.02086605,2522.3,2522.2,2.77535]
[1725271562649,4.35908345,2522.6,2522.3,5.55048]
[1725271562854,0.02086605,2522.6,2522.0,2.77556]
[1725271563051,0.02086605,2522.6,2522.4,2.77506]
[1725271563606,0.02086605,2522.6,2522.3,2.77515]
[1725271564072,0.02086605,2522.6,2522.1,2.77538]
[1725271564228,0.02086605,2522.6,2521.9,5.55122]
[1725271564229,4.3799495,2522.6,2521.9,5.55122]
[1725271564419,0.71548295,2522.5,2521.9,2.7756]
[1725271564621,0.02086605,2522.4,2521.9,2.7756]
[1725271565060,0.02086605,2522.4,2521.7,2.77582]
[1725271565244,9.66083345,2522.3,2521.7,2.77582]
[1725271565445,9.66083345,2522.3,2521.7,2.7759]
[1725271565446,4.35908345,2522.0,2521.7,2.7759]
[1725271565652,0.02086605,2521.9,2521.7,2.7759]
[1725271565816,0.02086605,2521.9,2521.7,5.55172]
[1725271566018,0.02086605,2521.9,2521.7,2.77582]
[1725271566327,0.02086605,2521.9,2521.8,2.77579]
[1725271566736,4.3799495,2522.0,2521.9,2.77568]
[1725271566941,0.02086605,2522.1,2522.0,2.77557]
[1725271567165,0.02086605,2522.2,2522.1,2.77539]
[1725271567820,0.02086605,2522.2,2522.1,5.55085]
[1725271568178,0.711511,2522.2,2522.1,2.77539]
[1725271568731,0.02086605,2522.2,2522.1,2.77539]
[1725271568969,1.04354555,2523.3,2522.6,2.77491]
[1725271568970,2.54816605,2522.7,2522.6,2.77491]
[1725271569128,2.54816605,2522.7,2522.5,2.77502]
[1725271569328,4.35908345,2522.6,2522.4,2.77512]
[1725271569523,4.3799495,2522.6,2522.4,2.77512]
[1725271569751,0.69072495,2522.5,2522.4,2.77512]
[1725271570030,0.02086605,2522.6,2522.5,2.77502]
[1725271570663,4.35908345,2522.9,2522.8,2.77469]
[1725271570876,4.77396,2523.5,2522.2,2.77525]
[1725271570877,4.35908345,2523.5,2522.9,2.77458]
[1725271571041,2.3055,2523.4,2523.3,2.77414]
[1725271571387,2.3055,2523.4,2523.2,2.77424]
[1725271571388,2.74140835,2523.4,2523.2,2.77424]
[1725271571527,2.74140835,2523.4,2523.3,2.77414]
[1725271571729,2.74140835,2523.4,2523.2,2.77424]
[1725271571973,4.63322428,2523.3,2522.2,2.5119]
[1725271572276,4.63322428,2523.3,2522.7,2.77473]
[1725271572428,0.02086605,2523.2,2522.7,2.77473]
[1725271572779,0.02086605,2523.2,2522.3,2.77514]
[1725271572780,0.02086605,2523.2,2523.0,2.77445]
[1725271572930,0.02086605,2523.2,2523.1,2.77436]
[1725271572931,0.99422908,2523.2,2523.1,2.77436]
[1725271573297,2.3055,2523.8,2523.3,2.77414]
[1725271573463,4.35908345,2523.6,2523.3,2.77406]
[1725271573767,4.35908345,2523.6,2523.5,2.77392]
[1725271573980,4.35908345,2523.6,2523.3,2.77406]
[1725271574182,4.35908345,2523.6,2523.5,2.77392]
[1725271574856,4.35908345,2523.6,2523.4,2.77402]
[1725271575061,0.45896335,2523.5,2523.4,2.77402]
[1725271575583,0.4798294,2523.5,2523.4,2.77402]
[1725271575889,0.4798294,2523.5,2523.2,2.77417]
[1725271576256,0.4798294,2523.5,2523.3,2.77414]
[1725271576444,0.02086605,2523.5,2523.4,2.77403]
[1725271576650,4.3799495,2523.6,2523.5,2.77392]
[1725271576898,2.77299,2524.4,2522.8,2.77463]
[1725271576899,4.3799495,2524.0,2523.6,2.77381]
[1725271577043,0.02086605,2523.9,2523.8,2.77352]
[1725271577249,4.35908345,2524.0,2523.9,2.77348]
[1725271577582,5.0436784,2524.0,2523.9,2.77348]
[1725271577896,0.68459495,2524.0,2523.9,2.77348]
[1725271578187,0.02086605,2524.3,2524.0,2.77337]
[1725271578357,2.3826,2524.2,2523.8,5.54702]
[1725271578557,0.02086605,2524.1,2523.9,2.77348]
[1725271578977,0.02086605,2524.1,2523.8,2.7735]
[1725271579189,0.30501215,2524.1,2523.8,2.7735]
[1725271579491,0.30501215,2524.1,2523.8,5.54702]
[1725271579648,0.30501215,2524.1,2523.3,5.10051]
[1725271579649,0.30501215,2524.1,2523.6,2.77376]
[1725271579988,0.30501215,2524.1,2524.0,2.77337]
[1725271580158,0.30501215,2524.1,2523.8,2.77358]
[1725271580356,0.30501215,2524.1,2523.6,5.5475]
[1725271580686,4.6640956,2524.1,2523.0,2.3532]